fUSD/lending_fUSD_20260203
["ID","MTS","AMOUNT","RATE_DAILY","PERIOD"]
[404445460,1770146606853,-5000.01,6.958e-05,2]
[404445461,1770146606975,-5000.01,6.958e-05,2]
[404445462,1770146607101,-5000.01,6.958e-05,2]
[404445463,1770146607240,-5000.01,6.958e-05,2]
[404445465,1770146641532,300.0,6.957e-05,2]
[404445466,1770146642469,150.0,6.957e-05,2]
[404445467,1770146644654,300.0,6.957e-05,2]
[404445468,1770146649236,259.0871794,6.958e-05,2]
[404445469,1770146650724,1000.0,6.957e-05,2]
[404445470,1770146673923,168.50385457,6.957e-05,2]
[404445471,1770146674020,215.50129694,6.957e-05,2]
[404445472,1770146675853,284.05733252,6.957e-05,2]
[404445473,1770146701544,300.0,6.957e-05,2]
[404445474,1770146701614,1200.0,6.957e-05,2]
[404445482,1770146761543,300.0,6.957e-05,2]
[404445483,1770146821543,300.0,6.957e-05,2]
[404445486,1770146848662,700.0,6.7e-05,2]
[404445487,1770146853253,1500.0,6.8e-05,2]
[404445488,1770146855336,2200.0,6.9e-05,2]
[404445490,1770146882891,294.2,6.9e-05,2]
[404445491,1770146885771,528.66033657,6.858e-05,2]
[404445492,1770146885808,10000.01,6.858e-05,2]
[404445493,1770146885843,10000.01,6.858e-05,2]
[404445494,1770146885882,10000.01,6.858e-05,2]
[404445495,1770146885918,10000.01,6.858e-05,2]
[404445496,1770146885952,10000.01,6.858e-05,2]
[404445497,1770146885988,10000.01,6.858e-05,2]
[404445498,1770146886025,10000.01,6.858e-05,2]
[404445499,1770146886058,10000.01,6.858e-05,2]
[404445500,1770146886089,5000.01,6.858e-05,2]
[404445501,1770146886119,5000.01,6.858e-05,2]
[404445502,1770146886149,5000.01,6.858e-05,2]
[404445503,1770146886181,5000.01,6.858e-05,2]
[404445504,1770146886212,5000.01,6.858e-05,2]
[404445505,1770146886246,5000.01,6.858e-05,2]
[404445507,1770146886279,5000.01,6.858e-05,2]
[404445508,1770146886312,5000.01,6.858e-05,2]
[404445509,1770146886347,5000.01,6.858e-05,2]
[404445510,1770146886378,5000.01,6.858e-05,2]
[404445511,1770146886411,10000.01,6.858e-05,2]
[404445512,1770146897489,-9550.01,6.858e-05,2]
[404445513,1770146897615,-10000.01,6.858e-05,2]
[404445514,1770146897759,-10000.01,6.858e-05,2]
[404445515,1770146897941,-10000.01,6.858e-05,2]
[404445516,1770146898084,-10000.01,6.858e-05,2]
[404445517,1770146898202,-10000.01,6.858e-05,2]
[404445518,1770146898330,-10000.01,6.858e-05,2]
[404445519,1770146898470,-10000.01,6.858e-05,2]
[404445520,1770146915032,150.85090786,6.857e-05,2]
[404445543,1770147001543,300.0,6.857e-05,2]
[404445544,1770147001584,1200.0,6.857e-05,2]
[404445545,1770147004184,209.0,6.858e-05,2]
[404445560,1770147031847,-88791.03379627,6.858e-05,2]
[404445604,1770147032404,-0.993695,6.858e-05,2]
[404445605,1770147032419,-10704.85266722,6.858e-05,2]
[404445606,1770147032443,-1466.39674033,6.858e-05,2]
[404445610,1770147032567,-75319.47108357,6.858e-05,2]
[404445612,1770147032579,-2367.88196205,6.858e-05,2]
[404445615,1770147032591,-2677.49964977,6.858e-05,2]
[404445743,1770147037939,-2961716.56128087,6.858e-05,2]
[404445744,1770147037951,-1605.0,6.858e-05,2]
[404445745,1770147037997,-1274.14311857,6.858e-05,2]
[404445746,1770147038009,-3693.29216092,6.858e-05,2]
[404445747,1770147038062,-365.36817353,6.858e-05,2]
[404445748,1770147038076,-1303.41828,6.858e-05,2]
[404445759,1770147039936,-2191.17893855,6.858e-05,2]
[404445763,1770147039996,-12940.462568,6.858e-05,2]
[404445764,1770147040008,-19940.42367397,6.858e-05,2]
[404445765,1770147040019,-3946.74280305,6.858e-05,2]
[404445800,1770147041653,-300.00000017,6.858e-05,2]
[404445801,1770147041672,-372.80333372,6.858e-05,2]
[404445802,1770147041684,-3561.99998,6.858e-05,2]
[404445803,1770147041696,-546.14299997,6.858e-05,2]
[404445804,1770147041708,-84835.4027579,6.858e-05,2]
[404445805,1770147041718,-3000.0,7e-05,2]
[404445806,1770147041728,-10562.78687387,7e-05,2]
[404445807,1770147041737,-1348.01360577,7e-05,2]
[404445808,1770147041748,-250.0,7.008e-05,2]
[404445809,1770147041757,-1000.0,7.058e-05,2]
[404445810,1770147041766,-215.41950212,7.058e-05,2]
[404445811,1770147041776,-266.78796498,7.221e-05,2]
[404445812,1770147041784,-420.0,7.543e-05,2]
[404445813,1770147041794,-1680.0,7.543e-05,2]
[404445814,1770147041803,-250.0,7.654e-05,2]
[404445815,1770147041812,-392.09110182,7.888e-05,2]
[404445816,1770147041822,-14685.41905029,8e-05,2]
[404445817,1770147041831,-4056.65,8.183e-05,2]
[404445818,1770147041840,-200.0,8.183e-05,2]
[404445819,1770147041849,-354.93,8.219e-05,2]
[404445820,1770147041858,-500.0,8.219e-05,2]
[404445821,1770147041867,-500.0,8.219e-05,2]
[404445822,1770147041876,-500.0,8.219e-05,2]
[404445823,1770147041885,-500.0,8.219e-05,2]
[404445824,1770147041893,-500.0,8.219e-05,2]
[404445825,1770147041902,-500.0,8.219e-05,2]
[404445826,1770147041911,-500.0,8.219e-05,2]
[404445827,1770147041920,-500.0,8.219e-05,2]
[404445828,1770147041929,-183.00718833,8.219e-05,2]
[404445829,1770147041940,-150.0,8.219e-05,2]
[404445830,1770147041950,-587.0,8.297e-05,2]
[404445831,1770147041959,-2351.0,8.297e-05,2]
[404445832,1770147041968,-354.93,8.493e-05,2]
[404445833,1770147041977,-150.99,8.539e-05,2]
[404445834,1770147041986,-9999.99,8.539e-05,2]
[404445835,1770147041997,-999.99,8.539e-05,2]
[404445836,1770147042006,-150.99,8.539e-05,2]
[404445837,1770147042015,-9999.99,8.539e-05,2]
[404445838,1770147042025,-19032.67,8.539e-05,2]
[404445839,1770147042034,-354.93,8.767e-05,2]
[404445840,1770147042043,-1852.42,8.776e-05,2]
[404445841,1770147042052,-354.93,9.041e-05,2]
[404445842,1770147042061,-31576.82,9.059e-05,2]
[404445843,1770147042071,-25417.35,9.097e-05,2]
[404445844,1770147042081,-349.0,9.114e-05,2]
[404445845,1770147042090,-299.99,9.114e-05,2]
[404445846,1770147042100,-823.0,9.127e-05,2]
[404445847,1770147042109,-3292.0,9.127e-05,2]
[404445848,1770147042118,-393.0,9.143e-05,2]
[404445849,1770147042127,-250.0,9.301e-05,2]
[404445850,1770147042137,-354.93,9.315e-05,2]
[404445851,1770147042146,-1208.0,9.363e-05,2]
[404445852,1770147042155,-9289.6588485,9.403e-05,2]
[404445853,1770147042164,-14287.78,9.457e-05,2]
[404445854,1770147042173,-354.93,9.589e-05,2]
[404445855,1770147042182,-166.66,9.727e-05,2]
[404445856,1770147042191,-477.0,9.796e-05,2]
[404445857,1770147042200,-191.0,9.796e-05,2]
[404445858,1770147042210,-205.0,9.8e-05,2]
[404445859,1770147042219,-1833.0,9.815e-05,2]
[404445860,1770147042228,-348.43284417,9.815e-05,2]
[404445861,1770147042238,-500.0,9.816e-05,2]
[404445862,1770147042255,-2271.37,9.816e-05,2]
[404445863,1770147042264,-198.0,9.835e-05,2]
[404445864,1770147042273,-354.93,9.863e-05,2]
[404445865,1770147042283,-200.0,0.0001,2]
[404445866,1770147042292,-500.0,0.0001,2]
[404445867,1770147042301,-500.0,0.0001,2]
[404445868,1770147042311,-500.0,0.0001,2]
[404445869,1770147042320,-500.0,0.0001,2]
[404445870,1770147042329,-500.0,0.0001,2]
[404445871,1770147042339,-500.0,0.0001,2]
[404445872,1770147042348,-500.0,0.0001,2]
[404445873,1770147042358,-500.0,0.0001,2]
[404445874,1770147042372,-500.0,0.0001,2]
[404445875,1770147042381,-151.0,0.0001,2]
[404445876,1770147042391,-500.0,0.0001,2]
[404445877,1770147042401,-151.0,0.0001,2]
[404445878,1770147042411,-500.0,0.0001,2]
[404445879,1770147042419,-151.0,0.0001,2]
[404445880,1770147042429,-151.0,0.0001,2]
[404445881,1770147042441,-151.0,0.0001,2]
[404445882,1770147042451,-151.0,0.0001,2]
[404445883,1770147042460,-151.0,0.0001,2]
[404445884,1770147042469,-500.0,0.0001,2]
[404445885,1770147042478,-151.0,0.0001,2]
[404445886,1770147042487,-500.0,0.0001,2]
[404445887,1770147042499,-151.0,0.0001,2]
[404445888,1770147042508,-500.0,0.0001,2]
[404445889,1770147042517,-151.0,0.0001,2]
[404445890,1770147042527,-500.0,0.0001,2]
[404445891,1770147042536,-151.0,0.0001,2]
[404445892,1770147042545,-500.0,0.0001,2]
[404445893,1770147042554,-500.0,0.0001,2]
[404445894,1770147042564,-500.0,0.0001,2]
[404445895,1770147042573,-200.0,0.0001,2]
[404445896,1770147042582,-500.0,0.0001,2]
[404445897,1770147042591,-500.0,0.0001,2]
[404445898,1770147042600,-500.0,0.0001,2]
[404445899,1770147042609,-150.01105822,0.0001,2]
[404445900,1770147042619,-500.0,0.0001,2]
[404445901,1770147042628,-500.0,0.0001,2]
[404445902,1770147042637,-151.0,0.0001,2]
[404445903,1770147042647,-151.0,0.0001,2]
[404445905,1770147042656,-151.0,0.0001,2]
[404445907,1770147042666,-151.0,0.0001,2]
[404445909,1770147042675,-151.0,0.0001,2]
[404445911,1770147042685,-151.0,0.0001,2]
[404445913,1770147042694,-151.0,0.0001,2]
[404445915,1770147042704,-151.0,0.0001,2]
[404445916,1770147042714,-151.0,0.0001,2]
[404445917,1770147042723,-151.0,0.0001,2]
[404445918,1770147042732,-151.0,0.0001,2]
[404445919,1770147042745,-151.0,0.0001,2]
[404445921,1770147042755,-151.0,0.0001,2]
[404445922,1770147042765,-151.0,0.0001,2]
[404445924,1770147042774,-151.0,0.0001,2]
[404445925,1770147042783,-151.0,0.0001,2]
[404445927,1770147042792,-151.0,0.0001,2]
[404445929,1770147042802,-151.0,0.0001,2]
[404445931,1770147042811,-151.0,0.0001,2]
[404445933,1770147042821,-151.0,0.0001,2]
[404445934,1770147042830,-1934.44747512,0.0001,2]
[404445935,1770147042839,-2739.81280514,0.0001,2]
[404445936,1770147042849,-22830.03957083,0.0001,2]
[404445937,1770147042859,-376.25114711,0.0001,2]
[404445938,1770147042868,-1295.1230245,0.0001,2]
[404445939,1770147042877,-1152.0,0.00010039,2]
[404445940,1770147042888,-512.0,0.00010039,2]
[404445941,1770147042898,-166.66,0.00010048,2]
[404445942,1770147042909,-500.0,0.0001009,2]
[404445943,1770147042919,-260.23313591,0.000101,2]
[404445944,1770147042930,-354.93,0.00010137,2]
[404445945,1770147042939,-379.28,0.00010278,2]
[404445946,1770147042951,-500.0,0.00010301,2]
[404445947,1770147042960,-1651.62,0.00010332,2]
[404445948,1770147042969,-500.0,0.00010364,2]
[404445949,1770147042979,-166.66,0.0001037,2]
[404445950,1770147042988,-354.93,0.00010411,2]
[404445951,1770147043001,-200.0,0.00010548,2]
[404445952,1770147043010,-500.0,0.00010548,2]
[404445953,1770147043019,-200.0,0.00010548,2]
[404445954,1770147043029,-320.5405974,0.00010603,2]
[404445955,1770147043038,-354.93,0.00010685,2]
[404445956,1770147043047,-166.66,0.00010691,2]
[404445957,1770147043056,-268.69527082,0.000107,2]
[404445958,1770147043065,-1029.43598608,0.000108,2]
[404445959,1770147043074,-1439.74766548,0.000109,2]
[404445960,1770147043084,-1439.74766545,0.000109,2]
[404445961,1770147043093,-1439.74766545,0.000109,2]
[404445962,1770147043103,-500.0,0.00010959,2]
[404445963,1770147043113,-150.0,0.00010959,2]
[404445964,1770147043122,-354.93,0.00010959,2]
[404445965,1770147043131,-166.66,0.00011012,2]
[404445966,1770147043140,-1613.0,0.00011043,2]
[404445967,1770147043149,-151.0,0.00011096,2]
[404445968,1770147043158,-500.0,0.00011096,2]
[404445969,1770147043167,-6480.91079444,0.00011099,2]
[404445970,1770147043176,-354.93,0.00011233,2]
[404445971,1770147043185,-10450.8662046,0.00011306,2]
[404445972,1770147043195,-166.66,0.00011333,2]
[404445973,1770147043204,-150.01105822,0.00011366,2]
[404445974,1770147043214,-4325.59,0.00011454,2]
[404445975,1770147043223,-354.93,0.00011507,2]
[404445976,1770147043232,-1439.74766545,0.00011614,2]
[404445977,1770147043243,-354.93,0.00011781,2]
[404445978,1770147043252,-6480.91079444,0.0001182,2]
[404445979,1770147043261,-495.96223362,0.00011844,2]
[404445980,1770147043270,-1308.8521814,0.00011844,2]
[404445981,1770147043279,-2308.9703912,0.00011844,2]
[404445982,1770147043289,-354.93,0.00012055,2]
[404445983,1770147043298,-2258.0,0.00012148,2]
[404445984,1770147043308,-322.6107,0.00012148,2]
[404445985,1770147043317,-721.12765534,0.00012148,2]
[404445986,1770147043326,-200.0,0.00012148,2]
[404445987,1770147043335,-160.0,0.00012148,2]
[404445988,1770147043344,-500.0,0.00012148,2]
[404445989,1770147043354,-500.0,0.00012148,2]
[404445990,1770147043364,-500.0,0.00012148,2]
[404445991,1770147043375,-500.0,0.00012148,2]
[404445992,1770147043384,-500.0,0.00012148,2]
[404445993,1770147043393,-500.0,0.00012148,2]
[404445994,1770147043403,-500.0,0.00012148,2]
[404445995,1770147043412,-500.0,0.00012148,2]
[404445996,1770147043421,-174.61919141,0.00012148,2]
[404445997,1770147043430,-642.81998071,0.00012148,2]
[404445998,1770147043441,-500.0,0.00012148,2]
[404445999,1770147043450,-500.0,0.00012148,2]
[404446000,1770147043459,-500.0,0.00012148,2]
[404446001,1770147043469,-500.0,0.00012148,2]
[404446002,1770147043479,-209.40437684,0.00012148,2]
[404446003,1770147043489,-209.40437684,0.00012148,2]
[404446005,1770147043500,-209.40437684,0.00012148,2]
[404446007,1770147043509,-578.20924309,0.00012148,2]
[404446009,1770147043518,-217.15233878,0.00012203,2]
[404446010,1770147043527,-225.18697532,0.00012258,2]
[404446012,1770147043536,-233.51889341,0.00012313,2]
[404446014,1770147043544,-354.93,0.00012328,2]
[404446017,1770147043553,-376.25114709,0.00012349,2]
[404446019,1770147043562,-242.15909246,0.00012368,2]
[404446023,1770147043764,-10562.78687387,0.000124,2]
[404446024,1770147043778,-251.11897888,0.00012423,2]
[404446025,1770147043788,-1295.1230245,0.00012441,2]
[404446026,1770147043797,-35766.0,0.00012451,2]
[404446027,1770147043807,-260.4103811,0.00012478,2]
[404446028,1770147043816,-270.0455652,0.00012533,2]
[404446029,1770147043826,-280.03725112,0.00012588,2]
[404446030,1770147043835,-354.93,0.00012602,2]
[404446031,1770147043845,-360.6081721,0.00012621,2]
[404446032,1770147043854,-500.0,0.0001263,2]
[404446033,1770147043864,-290.39862941,0.00012643,2]
[404446034,1770147043873,-115255.80789483,0.0001269,2]
[404446035,1770147043882,-200.0,0.00012696,2]
[404446036,1770147043892,-181.08010149,0.00012696,2]
[404446037,1770147043901,-209.40437685,0.00012696,2]
[404446038,1770147043911,-209.40437685,0.00012696,2]
[404446039,1770147043920,-301.1433787,0.00012698,2]
[404446040,1770147043930,-354.93,0.00012876,2]
[404446041,1770147043939,-5613.98559882,0.00013,2]
[404446042,1770147043950,-4434.56277461,0.00013,2]
[404446043,1770147043959,-11612.0735606,0.00013009,2]
[404446044,1770147043969,-6480.91079444,0.00013035,2]
[404446045,1770147043980,-5354.65944007,0.0001305,2]
[404446046,1770147043990,-354.93,0.0001315,2]
[404446047,1770147044000,-1439.74766545,0.00013186,2]
[404446048,1770147044009,-200.0,0.00013244,2]
[404446049,1770147044019,-187.78006525,0.00013244,2]
[404446050,1770147044029,-294.0,0.00013363,2]
[404446051,1770147044038,-354.93,0.00013424,2]
[404446052,1770147044048,-183.76045452,0.000135,2]
[404446053,1770147044058,-334.5472959,0.00013517,2]
[404446054,1770147044068,-500.0,0.00013562,2]
[404446055,1770147044078,-234.04112718,0.00013698,2]
[404446056,1770147044087,-500.0,0.00013698,2]
[404446057,1770147044096,-500.0,0.00013698,2]
[404446058,1770147044107,-500.0,0.00013698,2]
[404446059,1770147044116,-500.0,0.00013698,2]
[404446060,1770147044125,-500.0,0.00013698,2]
[404446061,1770147044135,-555.66,0.00013698,2]
[404446062,1770147044144,-500.0,0.00013698,2]
[404446063,1770147044153,-355.0,0.00013698,2]
[404446064,1770147044163,-500.0,0.00013698,2]
[404446065,1770147044172,-500.0,0.00013698,2]
[404446066,1770147044181,-500.0,0.00013698,2]
[404446067,1770147044191,-500.0,0.00013698,2]
[404446068,1770147044200,-500.0,0.00013698,2]
[404446069,1770147044210,-500.0,0.00013698,2]
[404446070,1770147044219,-500.0,0.00013698,2]
[404446071,1770147044229,-500.0,0.00013698,2]
[404446072,1770147044238,-500.0,0.00013698,2]
[404446073,1770147044249,-500.0,0.00013698,2]
[404446074,1770147044259,-558.54304702,0.00013698,2]
[404446075,1770147044268,-500.0,0.00013698,2]
[404446076,1770147044278,-500.0,0.00013698,2]
[404446077,1770147044287,-200.0,0.00013699,2]
[404446078,1770147044297,-9681.08,0.00013699,2]
[404446079,1770147044307,-200.0,0.00013792,2]
[404446080,1770147044317,-194.72792766,0.00013792,2]
[404446081,1770147044326,-200.0,0.00013932,2]
[404446082,1770147044336,-1500.0,0.00014,2]
[404446083,1770147044345,-200.0,0.00014071,2]
[404446084,1770147044357,-150.01105822,0.00014097,2]
[404446085,1770147044367,-44956.68910458,0.00014156,2]
[404446086,1770147044376,-2282.46026825,0.0001421,7]
[404446087,1770147044385,-200.0,0.00014212,2]
[404446088,1770147044395,-6480.91079444,0.00014251,2]
[404446089,1770147044405,-160.0,0.00014277,2]
[404446090,1770147044414,-200.0,0.0001434,2]
[404446091,1770147044424,-201.93286099,0.0001434,2]
[404446092,1770147044434,-200.0,0.00014354,2]
[404446093,1770147044445,-10332.61714049,0.0001439,2]
[404446094,1770147044455,-400.6757467,0.00014425,2]
[404446095,1770147044464,-200.0,0.00014498,2]
[404446096,1770147044473,-12773.2809167,0.00014549,2]
[404446097,1770147044483,-500.0,0.00014602,2]
[404446098,1770147044494,-3240.0,0.00014602,2]
[404446099,1770147044504,-151.0,0.00014634,2]
[404446100,1770147044513,-1439.74766545,0.00014757,2]
[404446101,1770147044523,-308.4703,0.00014802,2]
[404446102,1770147044532,-346.92554585,0.00014886,2]
[404446103,1770147044541,-200.0,0.00014888,2]
[404446104,1770147044550,-209.40437684,0.00014888,2]
[404446105,1770147044560,-285.87896122,0.000149,2]
[404446106,1770147044570,-250.0,0.00015,2]
[404446107,1770147044579,-2051.98803165,0.00015,2]
[404446108,1770147044589,-2141.537179,0.00015,14]
[404446109,1770147044599,-7988.62760331,0.00015,2]
[404446110,1770147044608,-685546.66772573,0.00015,3]
[404446111,1770147044617,-379.28,0.00015104,2]
[404446112,1770147044627,-200.0,0.00015436,2]
[404446113,1770147044637,-217.15233878,0.00015436,2]
[404446114,1770147044646,-150.01105822,0.00015462,2]
[404446115,1770147044655,-6480.91079444,0.00015466,2]
[404446116,1770147044665,-247.41,0.00015606,2]
[404446117,1770147044675,-500.0,0.00015836,2]
[404446119,1770147044685,-500.0,0.00015863,2]
[404446121,1770147044693,-3800.0,0.000159,5]
[404446122,1770147044703,-13934.4882728,0.00015955,2]
[404446123,1770147044713,-5000.0,0.0001596,2]
[404446124,1770147044722,-200.0,0.00015984,2]
[404446125,1770147044734,-225.18697532,0.00015984,2]
[404446126,1770147044747,-1295.1230245,0.0001599,2]
[404446127,1770147044757,-1510197.27171241,0.00016,4]
[404446128,1770147044766,-160.0,0.00016,3]
[404446129,1770147044775,-316.49289447,0.00016,2]
[404446130,1770147044785,-440.7433214,0.00016058,2]
[404446131,1770147044794,-4438.32,0.00016116,2]
[404446132,1770147044803,-9999.99,0.00016116,2]
[404446133,1770147044813,-1294.06,0.00016116,2]
[404446134,1770147044822,-25962.17,0.00016116,2]
[404446135,1770147044831,-359.76179104,0.00016255,2]
[404446136,1770147044840,-1439.74766545,0.00016329,2]
[404446137,1770147044850,-800.0,0.00016354,2]
[404446138,1770147044860,-163.0,0.000164,2]
[404446139,1770147044869,-2836.0,0.000164,2]
[404446140,1770147044879,-2836.0,0.000164,2]
[404446141,1770147044889,-839.0,0.000164,2]
[404446142,1770147044900,-200.0,0.00016438,2]
[404446143,1770147044909,-200.0,0.00016438,3]
[404446144,1770147044920,-200.0,0.00016438,4]
[404446145,1770147044931,-200.0,0.00016438,5]
[404446146,1770147044940,-200.0,0.00016438,6]
[404446147,1770147044949,-200.0,0.00016438,7]
[404446148,1770147044958,-200.0,0.00016438,8]
[404446149,1770147044967,-200.0,0.00016438,9]
[404446150,1770147044976,-200.0,0.00016438,10]
[404446151,1770147044986,-200.0,0.00016438,11]
[404446152,1770147044998,-200.0,0.00016438,12]
[404446153,1770147045007,-200.0,0.00016438,13]
[404446154,1770147045016,-200.0,0.00016438,14]
[404446155,1770147045026,-347.38207191,0.00016438,15]
[404446156,1770147045036,-500.0,0.00016438,2]
[404446157,1770147045045,-571.15632912,0.00016438,2]
[404446158,1770147045055,-180.4108127,0.00016464,2]
[404446159,1770147045064,-2000.0,0.000165,2]
[404446160,1770147045073,-379.28,0.00016509,2]
[404446161,1770147045083,-200.0,0.00016532,2]
[404446162,1770147045092,-233.51889341,0.00016532,2]
[404446163,1770147045101,-372.78,0.00016663,2]
[404446164,1770147045111,-6480.91079444,0.00016682,2]
[404446165,1770147045120,-165.71,0.00016712,2]
[404446166,1770147045129,-2833.0,0.0001672,2]
[404446167,1770147045139,-500.0,0.0001673,2]
[404446168,1770147045149,-260.20893212,0.0001673,2]
[404446169,1770147045158,-349.39414213,0.0001673,2]
[404446170,1770147045169,-500.0,0.0001673,2]
[404446171,1770147045179,-500.0,0.0001673,2]
[404446172,1770147045188,-500.0,0.0001673,2]
[404446173,1770147045197,-500.0,0.0001673,2]
[404446174,1770147045210,-500.0,0.0001673,2]
[404446175,1770147045219,-1000.0,0.00016801,7]
[404446176,1770147045229,-150.01105822,0.00016828,2]
[404446177,1770147045247,-625.826,0.00016886,2]
[404446178,1770147045263,-3481.0,0.00016886,2]
[404446179,1770147045274,-1335.0,0.00016886,2]
[404446180,1770147045285,-800.0,0.00016967,2]
[404446181,1770147045295,-300.0,0.00017,2]
[404446182,1770147045306,-33740.41699124,0.00017,2]
[404446183,1770147045317,-839.0,0.0001704,2]
[404446184,1770147045328,-2836.0,0.0001704,2]
[404446185,1770147045340,-200.0,0.0001708,2]
[404446186,1770147045351,-242.15909246,0.0001708,2]
[404446187,1770147045362,-839.0,0.00017106,2]
[404446188,1770147045378,-200.0,0.00017174,2]
[404446189,1770147045388,-150.0,0.00017205,7]
[404446190,1770147045399,-289.391426,0.00017205,7]
[404446191,1770147045409,-428.782853,0.00017205,7]
[404446192,1770147045419,-568.17428,0.00017205,7]
[404446193,1770147045429,-707.565706,0.00017205,7]
[404446194,1770147045438,-846.957133,0.00017205,7]
[404446195,1770147045450,-986.34856,0.00017205,7]
[404446196,1770147045459,-1125.739986,0.00017205,7]
[404446197,1770147045469,-1265.131413,0.00017205,7]
[404446198,1770147045479,-1404.52284,0.00017205,7]
[404446199,1770147045489,-5059.0,0.00017255,2]
[404446200,1770147045507,-1000.0,0.0001726,2]
[404446201,1770147045517,-5059.0,0.00017277,2]
[404446202,1770147045527,-1000.0,0.00017278,2]
[404446203,1770147045537,-247.80555787,0.00017278,2]
[404446204,1770147045546,-500.0,0.00017278,2]
[404446206,1770147045556,-500.0,0.00017278,2]
[404446208,1770147045565,-1000.0,0.00017278,2]
[404446209,1770147045574,-3454.08161478,0.00017344,2]
[404446210,1770147045583,-4673.493,0.00017344,2]
[404446211,1770147045592,-2836.0,0.0001736,2]
[404446212,1770147045602,-2000.0,0.000175,2]
[404446214,1770147045611,-14130.05782629,0.000175,3]
[404446216,1770147045621,-700.0,0.000175,6]
[404446218,1770147045631,-1000.0,0.00017534,2]
[404446220,1770147045641,-480.8108961,0.00017548,2]
[404446221,1770147045651,-800.0,0.00017581,2]
[404446222,1770147045660,-700.0,0.000176,6]
[404446223,1770147045670,-5733.0,0.00017604,2]
[404446224,1770147045679,-152.0,0.00017607,3]
[404446225,1770147045689,-373.07297731,0.00017624,2]
[404446226,1770147045698,-200.0,0.00017628,2]
[404446227,1770147045708,-251.11897888,0.00017628,2]
[404446228,1770147045717,-1132.18542692,0.00017638,2]
[404446229,1770147045726,-1612.07024115,0.00017638,2]
[404446230,1770147045736,-1013.84,0.0001764,2]
[404446231,1770147045749,-839.0,0.0001768,2]
[404446232,1770147045758,-163.0,0.0001768,2]
[404446233,1770147045767,-5888.0,0.00017686,2]
[404446234,1770147045779,-500.0,0.00017699,2]
[404446235,1770147045788,-4923.95857641,0.000177,2]
[404446236,1770147045798,-700.0,0.000177,6]
[404446237,1770147045807,-403.0,0.000177,5]
[404446238,1770147045817,-1000.0,0.00017737,2]
[404446239,1770147045827,-1000.0,0.00017742,2]
[404446241,1770147045836,-1000.0,0.00017754,2]
[404446243,1770147045846,-1000.0,0.00017765,2]
[404446245,1770147045856,-150.0,0.00017771,2]
[404446247,1770147045865,-1000.0,0.00017772,2]
[404446249,1770147045875,-5888.0,0.00017775,2]
[404446250,1770147045884,-150.0,0.00017792,2]
[404446252,1770147045893,-376.25114709,0.00017797,2]
[404446254,1770147045903,-1000000.0,0.000178,2]
[404446255,1770147045912,-700.0,0.000178,6]
[404446256,1770147045921,-1100.0,0.00017808,7]
[404446257,1770147045930,-150.0,0.00017808,2]
[404446258,1770147045940,-250.0,0.00017808,5]
[404446259,1770147045950,-250.0,0.00017808,5]
[404446260,1770147045959,-250.0,0.00017808,5]
[404446261,1770147045968,-250.0,0.00017808,5]
[404446262,1770147045977,-250.0,0.00017808,5]
[404446263,1770147045986,-318.936746,0.00017808,5]
[404446264,1770147045998,-1000.0,0.00017808,2]
[404446265,1770147046007,-1000.0,0.00017816,2]
[404446266,1770147046017,-2000.0,0.0001782,2]
[404446267,1770147046026,-2000.0,0.0001782,2]
[404446268,1770147046036,-495.7739334,0.00017826,2]